bitfinex-derivatives/quotes_ETHF0:USTF0_20260303
["timestamp","ask_amount","ask_price","bid_price","bid_amount"]
[1772518661225,0.72087014,1993.9,1993.4,0.74574109]
[1772518662827,0.72087014,1993.9,1993.2,0.74574109]
[1772518663030,0.72087014,1993.9,1993.3,7.32074109]
[1772518663629,0.72087014,1993.9,1993.4,0.74574109]
[1772518664627,0.72087014,1993.9,1993.3,6.575]
[1772518665831,0.72087014,1993.9,1993.3,7.32074109]
[1772518666628,0.72087014,1993.9,1993.3,6.575]
[1772518666835,0.72087014,1993.9,1993.2,6.574]
[1772518667225,0.72087014,1993.9,1993.2,7.31974109]
[1772518667933,0.72087014,1993.9,1993.2,0.74574109]
[1772518668129,0.72087014,1993.9,1993.2,7.31974109]
[1772518670236,0.72087014,1993.9,1993.3,0.76655901]
[1772518670627,0.72087014,1993.9,1993.2,0.76655901]
[1772518670834,0.72087014,1993.9,1992.3,0.25099]
[1772518670835,0.72087014,1993.9,1993.1,6.574]
[1772518671234,0.72087014,1993.9,1993.1,7.34055901]
[1772518671636,0.71675086,1993.7,1993.2,0.76655901]
[1772518672541,0.7211737,1993.9,1993.2,0.76655901]
[1772518673137,0.7211737,1993.9,1993.1,7.34055901]
[1772518673440,0.7211737,1993.9,1993.2,0.76655901]
[1772518674438,0.7211737,1993.9,1993.1,7.34055901]
[1772518674637,0.25085,1993.5,1992.9,6.574]
[1772518674939,0.25085,1993.5,1992.3,0.76655901]
[1772518674940,0.71675086,1993.4,1992.3,0.76655901]
[1772518675136,0.71675086,1993.2,1992.4,0.76655901]
[1772518675337,0.71675086,1993.2,1992.5,0.76655901]
[1772518677642,0.71675086,1993.2,1992.4,7.34055901]
[1772518677841,0.71675086,1993.2,1992.5,0.76655901]
[1772518680347,0.25088,1993.3,1992.5,0.76655901]
[1772518680553,0.71675086,1993.4,1992.5,0.76655901]
[1772518681239,0.71675086,1993.4,1992.7,0.76655901]
[1772518681844,0.71675086,1993.3,1992.5,0.76655901]
[1772518682044,0.25089,1993.2,1992.4,7.34155901]
[1772518682248,0.71675086,1993.1,1992.5,0.76655901]
[1772518683945,0.71675086,1992.9,1992.3,0.76655901]
[1772518684345,0.71675086,1992.7,1992.1,0.00433342]
[1772518684544,0.71675086,1992.7,1992.1,0.44035642]
[1772518685154,0.71675086,1992.9,1992.1,0.44035642]
[1772518686155,0.71675086,1993.2,1992.1,0.44035642]
[1772518687953,0.71675086,1993.2,1992.2,6.575]
[1772518688149,0.71675086,1993.2,1992.3,0.45318829]
[1772518690753,0.71675086,1993.7,1992.3,0.45318829]
[1772518697153,0.71675086,1993.7,1992.4,0.44230506]
[1772518697459,0.71675086,1993.5,1992.6,0.44230506]
[1772518698858,0.71675086,1993.5,1992.3,10.43389914]
[1772518698859,0.71675086,1993.5,1992.7,7.02684985]
[1772518700053,0.71675086,1993.5,1992.7,0.45184985]
[1772518700358,0.74838339,1993.3,1992.6,6.575]
[1772518700760,0.74838339,1993.3,1992.6,7.03136502]
[1772518702261,0.74838339,1993.3,1992.6,6.575]
[1772518702671,0.74838339,1993.3,1992.6,7.03435013]
[1772518703767,0.74838339,1993.3,1992.6,0.45935013]
[1772518704067,0.74838339,1993.3,1992.6,7.03435013]
[1772518705262,0.74838339,1993.3,1992.7,0.46586576]
[1772518706067,0.74838339,1993.1,1992.3,0.41679651]
[1772518706265,0.74838339,1993.1,1992.4,0.41698999]
[1772518716270,0.74838339,1993.1,1992.4,6.99298999]
[1772518719868,0.74838339,1993.1,1992.5,6.576]
[1772518724281,0.74838339,1993.1,1992.6,0.45419956]
[1772518724572,0.74838339,1993.1,1992.5,7.03019956]
[1772518725879,0.74838339,1993.1,1992.6,0.45845863]
[1772518727278,0.74838339,1993.5,1992.6,0.45845863]
[1772518727480,0.74838339,1993.8,1992.6,0.45845863]
[1772518727677,0.74838339,1993.8,1992.8,0.46351357]
[1772518727885,0.00442284,1993.9,1993.0,0.46457891]
[1772518728085,0.00442284,1993.9,1993.1,0.46457891]
[1772518728284,0.82818042,1994.2,1993.1,0.46457891]
[1772518728488,0.82818042,1994.4,1993.3,0.4649654]
[1772518728683,0.82818042,1994.4,1993.5,0.4649654]
[1772518729383,0.83199349,1994.4,1993.5,0.47127053]
[1772518731284,0.83199349,1994.4,1993.6,7.0199781]
[1772518731492,0.83199349,1994.4,1993.7,0.4449781]
[1772518734288,0.83199349,1994.4,1993.6,6.575]
[1772518734788,0.83199349,1994.4,1993.6,0.44819655]
[1772518734978,0.83199349,1994.4,1993.7,0.44918038]
[1772518735389,0.83199349,1994.4,1993.6,6.574]
[1772518735685,0.83199349,1994.4,1993.6,7.023714]
[1772518737291,0.83199349,1994.4,1993.6,7.01684945]
[1772518737701,0.83199349,1994.4,1993.6,7.01584945]
[1772518739487,0.82818042,1994.2,1993.5,0.00630513]
[1772518739896,0.82818042,1994.2,1993.5,0.45313015]
[1772518741093,0.83199349,1994.4,1993.5,0.45313015]
[1772518742389,0.82818042,1994.3,1993.5,0.00630513]
[1772518742596,0.82818042,1994.3,1993.5,0.45437142]
[1772518743187,0.82818042,1994.1,1993.5,0.45437142]
[1772518744495,0.82818042,1994.1,1993.6,0.45145572]
[1772518746097,1.03111816,1994.4,1993.5,0.00630513]
[1772518746098,0.82818042,1993.7,1993.5,0.00630513]
[1772518746299,0.82818042,1993.7,1993.3,6.573]
[1772518746502,0.82818042,1993.7,1993.4,0.44734256]
[1772518747300,0.82818042,1993.7,1993.4,0.45181988]
[1772518747601,0.82818042,1993.7,1993.0,1.47591827]
[1772518747799,0.82818042,1993.7,1993.1,0.44861318]
[1772518748499,0.82818042,1993.7,1993.1,0.45245792]
[1772518749400,0.82818042,1993.7,1993.3,0.45874613]
[1772518749804,0.82818042,1993.7,1993.2,1.48687506]
[1772518751101,0.82818042,1993.7,1993.2,0.45956997]
[1772518752001,0.82818042,1993.5,1993.1,0.00384474]
[1772518753108,1.27809509,1994.0,1992.7,0.47206724]
[1772518753109,0.82818042,1993.3,1992.7,0.47206724]
[1772518753403,0.82818042,1993.3,1992.8,1.49937233]
[1772518753912,0.82818042,1993.3,1992.9,0.47285827]
[1772518754110,0.82818042,1993.3,1992.9,0.47682779]
[1772518755011,0.82818042,1993.3,1992.9,0.00396952]
[1772518755207,0.82818042,1993.3,1992.8,0.47371353]
[1772518755610,0.82818042,1993.3,1992.6,0.55998093]
[1772518756212,0.82818042,1993.3,1992.6,0.56624086]
[1772518765512,0.25085,1993.6,1992.6,0.56624086]
[1772518765513,0.81336597,1993.5,1992.7,0.5858537]
[1772518766920,0.25085,1993.6,1992.6,0.00625993]
[1772518766921,0.81336597,1993.3,1992.6,0.59359452]
[1772518768015,1.06423597,1993.4,1992.6,0.59359452]
[1772518768715,0.81336597,1993.7,1992.7,0.5535207]
[1772518770112,0.25082,1993.8,1993.0,0.53920474]
[1772518770317,0.25082,1993.8,1993.2,0.53920474]
[1772518770718,0.81336597,1993.7,1993.0,0.53985013]
[1772518771818,0.81336597,1993.7,1992.9,0.48174466]
[1772518773321,0.81336597,1993.7,1992.6,1.48681692]
[1772518773322,0.81336597,1993.7,1992.7,0.47450984]
[1772518774820,0.81336597,1993.7,1993.0,0.47519862]
[1772518775921,0.81336597,1993.7,1993.2,0.47711412]
[1772518776518,0.81336597,1993.7,1993.3,0.47716519]
[1772518779427,0.25077,1994.2,1993.5,0.47325447]
[1772518779624,0.81336597,1994.2,1993.6,0.47325447]
[1772518779825,0.81336597,1994.2,1993.5,8.07550566]
[1772518781018,0.81336597,1994.2,1993.6,0.47445142]
[1772518788331,0.81336597,1994.2,1993.5,7.60167093]
[1772518788734,0.81336597,1994.2,1993.5,8.03031719]
[1772518789034,0.81336597,1994.2,1993.7,1.45631719]
[1772518789535,0.7625544,1994.2,1993.8,0.4285287]
[1772518791533,0.7625544,1994.2,1993.7,1.45277355]
[1772518792135,0.7625544,1994.2,1993.8,0.4202667]
[1772518792336,0.7625544,1994.2,1993.7,0.4202667]
[1772518795638,0.7625544,1994.2,1993.5,1.43126317]
[1772518795840,0.7625544,1994.2,1993.6,6.573]
[1772518797646,0.7625544,1994.2,1993.5,6.97659224]
[1772518798546,0.7625544,1994.2,1993.3,1.42883825]
[1772518798746,0.7625544,1994.2,1993.4,6.97447435]
[1772518799445,0.7625544,1994.2,1993.4,6.573]
[1772518800249,0.7625544,1994.0,1993.3,0.39905961]
[1772518800448,0.7625544,1994.0,1993.1,6.96762168]
[1772518801253,0.7625544,1994.0,1993.1,6.573]
[1772518801445,0.7625544,1994.0,1993.1,6.9742037]
[1772518801854,0.7625544,1994.0,1993.2,0.39723451]
[1772518802050,0.7625544,1994.0,1993.4,0.39723451]
[1772518803051,0.7625544,1994.0,1992.9,0.39291653]
[1772518803052,0.7625544,1993.7,1992.9,0.39291653]
[1772518803447,0.7625544,1994.1,1992.9,0.39291653]
[1772518803754,4.16512241,1994.4,1993.5,0.40786835]
[1772518803755,0.7625544,1994.3,1993.5,0.40786835]
[1772518804163,0.7625544,1994.3,1993.6,0.40357927]
[1772518810065,0.7625544,1993.9,1993.1,0.38063236]
[1772518812355,0.7625544,1993.9,1993.4,1.0273639]
[1772518812561,0.7625544,1994.3,1993.5,0.3659507]
[1772518813455,0.7625544,1994.3,1993.7,0.35817063]
[1772518813861,0.76636747,1994.4,1993.9,0.35471815]
[1772518814063,0.76636747,1994.4,1993.7,6.92771815]
[1772518814357,0.76636747,1994.4,1993.8,0.35436477]
[1772518819063,0.76636747,1994.4,1993.8,1.38172867]
[1772518819263,0.76636747,1994.4,1993.9,0.31731322]
[1772518820158,0.76636747,1994.4,1993.8,0.31387251]
[1772518820366,0.76636747,1994.4,1993.8,6.572]
[1772518820767,0.76636747,1994.4,1993.6,6.572]
[1772518821166,0.76636747,1994.4,1993.6,6.88276768]
[1772518821564,0.7502841,1994.2,1993.5,6.572]
[1772518823266,0.7502841,1994.2,1993.3,6.88149834]
[1772518823667,0.7502841,1994.2,1993.4,0.30949834]
[1772518825664,0.7502841,1994.2,1993.3,7.5993639]
[1772518825665,0.7502841,1994.2,1993.6,0.30371456]
[1772518826770,0.7502841,1994.3,1993.8,0.30049148]
[1772518826970,0.75409717,1994.4,1993.9,0.29759271]
[1772518830572,0.75409717,1994.4,1993.8,6.572]
[1772518830978,0.75409717,1994.4,1993.8,6.84728485]
[1772518831180,0.75409717,1994.4,1993.8,6.572]
[1772518831371,0.75409717,1994.4,1993.8,6.83780708]
[1772518831574,0.75409717,1994.4,1993.9,0.26580708]
[1772518839187,0.75409717,1994.4,1994.0,6.572]
[1772518839388,0.75409717,1994.4,1994.0,6.57572152]
[1772518839788,0.75409717,1994.4,1994.0,6.81209407]
[1772518839980,0.2507,1994.7,1994.1,0.23637255]
[1772518840186,0.7502841,1994.8,1994.1,0.23637255]
[1772518841089,0.75530272,1994.8,1994.1,0.23637255]
[1772518844292,0.75530272,1994.8,1994.0,6.80072114]
[1772518846694,0.75530272,1994.8,1994.1,0.21622668]
[1772518848988,0.75530272,1994.8,1994.1,6.571]
[1772518849586,0.75530272,1994.8,1994.1,6.76851653]
[1772518851197,0.75530272,1994.8,1994.2,0.1959133]
[1772518852600,0.75530272,1994.8,1994.1,6.76377432]
[1772518854193,0.67422005,1994.5,1994.0,0.00372152]
[1772518854398,0.67422005,1994.5,1993.5,0.19101994]
[1772518854399,0.67422005,1994.3,1993.5,0.19101994]
[1772518855600,0.67422005,1994.3,1993.5,0.19745175]
[1772518857601,0.67422005,1994.0,1993.5,0.00643181]
[1772518858199,0.67422005,1994.0,1993.2,6.75677292]
[1772518858496,0.67422005,1993.9,1993.2,7.78449759]
[1772518859197,0.67422005,1993.9,1993.2,7.78997709]
[1772518860201,0.67422005,1993.9,1993.2,0.19125242]
[1772518860500,0.67422005,1993.8,1993.2,0.19125242]
[1772518860695,0.67422005,1993.8,1993.2,0.0054795]
[1772518860902,0.67422005,1993.4,1992.8,6.75579376]
[1772518861101,0.67422005,1993.4,1992.8,7.78351843]
[1772518861502,0.67422005,1993.4,1992.9,0.18982833]
[1772518861905,0.67911569,1993.4,1992.9,0.19635916]
[1772518862106,0.67911569,1993.4,1992.9,0.00653083]
[1772518862297,0.67911569,1993.4,1992.9,0.19352948]
[1772518862999,0.00489564,1993.4,1993.2,0.18445187]
[1772518863196,0.67911569,1993.4,1993.1,1.24681155]
[1772518863398,0.00489564,1993.4,1993.2,0.21908688]
[1772518864102,0.92504005,1993.8,1993.2,0.21908688]
[1772518864302,0.67422005,1993.7,1993.2,0.21908688]
[1772518865098,0.68038507,1993.7,1993.2,0.21908688]
[1772518865508,0.68038507,1993.7,1993.0,0.22252185]
[1772518865709,0.67422005,1993.6,1992.9,0.22905268]
[1772518866606,0.67422005,1993.6,1992.9,0.00653083]
[1772518874602,0.67422005,1993.4,1992.9,0.00653083]
[1772518875511,0.67422005,1993.4,1992.9,0.20229478]
[1772518875812,0.67422005,1993.4,1992.9,0.00653083]
[1772518877002,0.67422005,1993.2,1992.6,0.19112272]
[1772518877208,0.67422005,1993.2,1992.2,0.19765355]
[1772518878109,0.67422005,1993.2,1992.2,0.20330331]
[1772518878702,0.67422005,1993.2,1992.5,0.19391649]
[1772518880212,0.68425405,1993.3,1992.5,0.19391649]
[1772518880613,0.68425405,1993.6,1992.8,0.19079303]
[1772518886921,0.69041907,1993.7,1993.1,0.16812217]
[1772518887221,0.00616502,1993.7,1993.1,0.16812217]
[1772518888016,0.68425405,1993.9,1993.2,0.16477435]
[1772518889121,0.69064081,1993.9,1993.2,0.16477435]
[1772518892627,0.69064081,1993.9,1993.2,1.19245586]
[1772518893516,0.69064081,1993.9,1993.4,1.15272134]
[1772518893721,0.69064081,1993.9,1993.5,0.12503983]
[1772518894923,0.69064081,1993.9,1993.4,1.14907992]
[1772518895729,0.69064081,1993.9,1993.6,1.02768151]
[1772518895929,0.69064081,1993.9,1993.6,1.03233315]
[1772518896429,0.68425405,1994.1,1993.6,1.15017351]
[1772518897529,0.68998705,1994.1,1993.6,1.15017351]
[1772518897924,0.68998705,1994.1,1993.7,0.67246521]
[1772518898530,0.68998705,1994.1,1993.6,1.70479836]
[1772518898732,0.68998705,1994.1,1993.6,1.03233315]
[1772518899134,0.68998705,1994.1,1993.6,1.70479836]
[1772518900333,0.68998705,1994.1,1993.7,0.67246521]
[1772518904236,0.58998705,1994.1,1993.7,0.67246521]
[1772518906037,0.68425405,1993.9,1993.2,0.67246521]
[1772518906334,0.68425405,1993.9,1993.3,1.70014672]
[1772518906931,0.68425405,1993.9,1993.3,1.70609491]
[1772518907335,0.68425405,1993.9,1993.4,0.67246521]
[1772518908340,0.65881071,1993.7,1992.9,1.64339738]
[1772518908540,0.65881071,1993.5,1992.9,0.61571587]
[1772518909335,0.65881071,1993.5,1992.9,0.62178545]
[1772518910137,0.65881071,1993.5,1993.0,0.61571587]
[1772518913542,0.65881071,1993.3,1992.9,0.00606958]
[1772518913740,0.65881071,1993.3,1992.6,0.61571587]
[1772518914136,0.65881071,1993.3,1992.7,1.64339738]
[1772518914734,0.65881071,1993.3,1992.7,1.64703664]
[1772518915135,0.65881071,1993.3,1992.8,0.61571587]
[1772518918044,0.65881071,1993.5,1993.0,0.61571587]
[1772518920846,0.65881071,1993.5,1992.7,0.00363926]
[1772518921546,7.19748567,1994.0,1992.4,0.61571587]
[1772518921547,0.65881071,1993.3,1992.4,0.61571587]
[1772518922642,0.65881071,1993.3,1992.4,0.62086702]
[1772518924344,6.17018,1993.8,1992.4,0.62086702]
[1772518924345,0.65881071,1993.1,1992.4,0.00515115]
[1772518924545,0.65881071,1992.9,1992.1,0.61571587]
[1772518924749,0.65881071,1992.7,1991.7,0.61571587]
[1772518925648,0.6639704,1992.7,1991.8,0.61571587]
[1772518932555,0.6639704,1992.7,1991.7,6.57888003]
[1772518932556,0.65881071,1992.5,1991.7,0.00388003]
[1772518932857,0.65881071,1992.5,1991.7,0.6195959]
[1772518934751,0.25097,1992.6,1991.7,0.6195959]
[1772518934752,0.90978071,1992.6,1991.7,0.6195959]
[1772518935457,0.6639704,1992.7,1991.7,0.6195959]
[1772518941054,0.00515969,1992.7,1991.7,0.6195959]
[1772518941658,0.00515969,1992.7,1991.9,0.60093463]
[1772518941859,0.00515969,1992.7,1992.1,0.60093463]
[1772518942060,0.60434355,1993.0,1992.1,0.60093463]
[1772518942252,0.60434355,1993.1,1992.1,0.60093463]
[1772518942457,0.60434355,1993.6,1992.5,0.60093463]
[1772518942656,0.60434355,1993.6,1992.7,0.60093463]
[1772518943057,0.00506231,1993.6,1992.7,0.60093463]
[1772518943659,0.60434355,1993.9,1992.9,0.60093463]
[1772518943957,0.60434355,1994.0,1992.9,0.60093463]
[1772518944860,0.61062393,1994.0,1992.9,0.60093463]
[1772518945454,0.00628038,1994.0,1993.1,0.60093463]
[1772518945660,0.00628038,1994.0,1993.3,0.60093463]
[1772518946162,0.61062393,1994.0,1993.3,0.60093463]
[1772518948162,0.61062393,1994.0,1993.1,0.00567037]
[1772518948366,0.61062393,1994.0,1993.1,0.606605]
[1772518949668,0.61062393,1994.0,1992.9,0.60093463]
[1772518949669,0.60434355,1993.8,1992.9,0.60093463]
[1772518950565,0.60434355,1993.8,1992.9,0.60501384]
[1772518956668,0.60434355,1993.6,1992.9,0.60501384]
[1772518961169,0.60434355,1993.9,1992.9,0.60501384]
[1772518969684,0.60434355,1993.9,1993.0,0.56674625]
[1772518970484,0.00628038,1994.0,1993.0,0.56674625]
[1772518970780,0.6222314,1994.0,1993.0,0.56674625]
[1772518971583,0.6222314,1994.0,1993.1,6.574]
[1772518971784,0.6222314,1994.0,1993.2,0.56674625]
[1772518973685,0.6222314,1994.0,1993.4,0.56674625]
[1772518974685,0.6222314,1994.0,1993.5,0.56674625]
[1772518979089,0.34989513,1994.1,1993.7,0.56674625]
[1772518979287,0.34989513,1994.1,1993.6,0.56674625]
[1772518979491,0.34989513,1994.1,1993.4,6.573]
[1772518979692,0.34989513,1994.1,1993.4,7.13974625]
[1772518979990,0.34989513,1994.1,1993.3,6.573]
[1772518980285,0.35524207,1994.1,1993.3,6.573]
[1772518980487,0.35524207,1994.1,1993.3,7.13974625]
[1772518980887,0.35524207,1994.1,1993.3,6.573]
[1772518981090,0.35524207,1994.1,1993.2,7.13974625]
[1772518981289,0.35524207,1994.1,1993.1,0.56674625]
[1772518981290,0.34908865,1993.9,1993.1,0.56674625]
[1772518981891,0.00534694,1994.1,1993.6,0.56674625]
[1772518982087,0.00534694,1994.1,1993.7,0.56674625]
[1772518982293,0.34027864,1994.2,1993.7,0.56674625]
[1772518982691,0.25074,1994.5,1993.7,0.56674625]
[1772518982692,0.34035858,1994.4,1993.7,0.56674625]
[1772518983193,0.34606763,1994.4,1993.7,0.56674625]
[1772518988797,0.00570905,1994.4,1993.7,0.56674625]
[1772518989097,0.34095333,1994.4,1993.7,0.56674625]
[1772518990095,0.00570905,1994.4,1993.9,0.56674625]
[1772518990295,0.33461088,1994.6,1993.9,0.56674625]
[1772518991193,0.34095955,1994.6,1993.9,0.56674625]
[1772518993996,0.00634867,1994.6,1993.9,0.56674625]
[1772518994197,0.00634867,1994.6,1994.2,0.56674625]
[1772518994398,0.32894475,1994.9,1994.2,0.56674625]
[1772518994897,0.32849972,1995.1,1994.2,0.56674625]
[1772518995097,0.32849972,1995.3,1994.5,0.56674625]
[1772518995298,0.3335944,1995.3,1994.5,0.57038167]
[1772518995803,0.3335944,1995.3,1994.7,0.56674625]
[1772518995996,0.00509468,1995.3,1994.7,0.56674625]
[1772518996202,0.33652317,1995.7,1994.8,0.56674625]
[1772518997204,0.34186203,1995.7,1994.8,0.56674625]
[1772518999506,0.34186203,1995.7,1994.5,0.00363542]
[1772518999507,0.37563309,1995.4,1994.5,6.57463542]
[1772518999809,0.37515608,1995.1,1994.5,0.00363542]
[1772519000104,0.37515608,1995.1,1994.2,0.57363039]
[1772519000305,0.37515608,1995.1,1994.3,0.57363039]
[1772519000704,0.37156728,1995.4,1994.6,0.57363039]
[1772519000909,0.37156728,1995.4,1994.6,0.57975655]
[1772519002002,0.37195558,1995.6,1994.8,0.57363039]
[1772519004909,0.25591886,1995.7,1994.9,0.57363039]
[1772519004910,0.00533886,1995.7,1994.9,0.57363039]
[1772519005913,0.36740436,1996.1,1995.2,0.57363039]
[1772519006507,7.6415113,1996.4,1995.2,0.57363039]
[1772519006508,0.36744845,1995.9,1995.2,0.57363039]
[1772519007213,0.37247397,1995.9,1995.2,0.57363039]
[1772519007611,0.37247397,1995.9,1994.6,0.00612616]
[1772519007612,0.37247397,1995.9,1994.7,0.57363039]
[1772519008111,0.38552745,1995.7,1994.7,0.57363039]
[1772519010915,0.38552745,1995.7,1994.9,0.57363039]
[1772519020417,0.38552745,1995.7,1994.7,0.57363039]
[1772519020619,0.40351699,1995.5,1994.7,0.57363039]
[1772519025030,0.25061,1995.4,1994.7,0.57363039]
[1772519025230,0.39449317,1995.3,1994.6,0.57975655]
[1772519026425,0.39449317,1995.3,1994.7,0.57363039]
[1772519034635,0.3147595,1995.4,1994.7,0.57363039]
[1772519035238,0.31444497,1995.7,1995.1,0.57921834]
[1772519035436,0.31394482,1995.6,1995.1,0.57921834]
[1772519035637,0.31394482,1995.7,1995.2,1.02624713]
[1772519035932,0.3136339,1995.8,1995.3,0.57921834]
[1772519040735,0.3136339,1995.8,1995.1,0.57921834]
[1772519040936,0.33883945,1995.7,1994.7,0.57921834]
[1772519042642,0.33459889,1995.6,1994.7,0.57921834]
[1772519043741,0.33234032,1995.5,1994.7,0.57921834]
[1772519049247,0.33117485,1995.4,1994.7,0.57921834]
[1772519050149,0.33091036,1995.6,1994.9,0.57921834]
[1772519052647,0.32962225,1995.4,1994.7,0.57921834]
[1772519052949,7.84423404,1995.5,1994.7,0.57921834]
[1772519052950,0.32962225,1995.2,1994.7,0.57921834]
[1772519053643,0.32962225,1995.2,1994.6,0.00123053]
[1772519053843,0.32962225,1995.2,1994.5,0.57921834]
[1772519054043,0.32750056,1995.0,1994.0,0.57921834]
[1772519054244,1.02563404,1994.9,1994.0,0.57921834]
[1772519054552,0.32753065,1994.8,1994.0,0.57921834]
[1772519054749,0.32753065,1994.8,1994.0,0.58538509]
[1772519055649,0.30143248,1994.6,1994.0,0.00616675]
[1772519055859,0.30143248,1994.6,1994.0,0.58538509]
[1772519056253,0.3011857,1994.9,1994.0,0.58538509]
[1772519056953,6.81966,1995.1,1994.0,0.58538509]
[1772519056954,0.30097642,1994.7,1994.0,0.58538509]
[1772519061447,0.27966962,1994.8,1994.0,0.58538509]
[1772519066953,0.27280025,1994.6,1994.0,0.58538509]
[1772519069549,0.27280025,1994.6,1993.4,0.59618962]
[1772519069756,0.27255947,1994.2,1993.4,0.59618962]
[1772519070658,0.27644632,1994.2,1993.4,0.60096135]
[1772519071347,0.00388685,1994.2,1993.4,0.60096135]
[1772519080465,0.00388685,1994.2,1993.4,1.62826987]
[1772519080665,0.00388685,1994.2,1993.5,0.59618962]
[1772519081760,0.00388685,1994.2,1993.7,0.59618962]
[1772519081966,0.26705495,1994.7,1993.9,0.59618962]
[1772519082963,0.27188677,1994.7,1993.9,0.59618962]
[1772519083268,0.2717402,1994.7,1993.9,0.59618962]
[1772519083669,0.27067411,1994.7,1993.9,0.59618962]
[1772519084871,0.26552472,1994.6,1993.9,0.59618962]
[1772519088675,0.28102998,1994.7,1993.9,0.59618962]
[1772519088974,0.2808672,1994.7,1993.9,0.59618962]
[1772519089874,0.27660663,1994.0,1993.4,0.59380419]
[1772519090078,0.27660663,1994.0,1993.4,0.21878712]
[1772519090269,7.59930852,1994.1,1992.9,0.58903246]
[1772519090270,0.5924551,1993.8,1992.9,0.58903246]
[1772519091074,0.5924551,1993.8,1992.9,0.5938886]
[1772519094478,0.5924551,1993.6,1992.9,0.5938886]
[1772519094680,0.5924551,1993.4,1992.7,0.58903246]
[1772519094885,0.5924551,1993.2,1992.5,0.58903246]
[1772519095875,0.5924551,1993.2,1992.5,0.59354156]
[1772519095876,0.59750348,1993.2,1992.5,0.59354156]
[1772519096081,0.59750348,1993.2,1992.5,0.0045091]
[1772519096282,0.5924551,1993.0,1992.5,0.59354156]
[1772519100283,0.59750348,1993.2,1992.5,0.59354156]
[1772519101386,0.5924551,1993.6,1992.6,0.58903246]
[1772519102490,0.59616331,1993.6,1992.6,0.58903246]
[1772519103089,0.5924551,1993.4,1992.6,0.58903246]
[1772519103789,0.5924551,1993.2,1992.6,0.58903246]
[1772519105290,0.5924551,1993.1,1992.6,0.58903246]
[1772519107201,0.5924551,1992.9,1992.0,0.58903246]
[1772519107498,0.5924551,1992.6,1992.0,0.58903246]
[1772519108201,0.5924551,1992.6,1992.0,0.5925445]
[1772519113296,0.5924551,1992.6,1992.0,0.00351204]
[1772519113502,0.5924551,1992.4,1991.8,0.58903246]
[1772519114701,0.5924551,1992.4,1991.8,0.5936858]
[1772519117702,0.25098,1992.5,1991.8,0.5936858]
[1772519117703,0.81442985,1992.5,1991.8,0.5936858]
[1772519120103,0.56344985,1992.4,1991.8,0.5936858]
[1772519128209,0.25098,1992.5,1991.8,0.5936858]
[1772519128410,0.81442985,1992.5,1991.8,0.5936858]
[1772519128711,0.81437985,1992.9,1991.9,0.56808579]
[1772519129208,0.56344985,1992.8,1991.9,0.56808579]
[1772519131306,0.56344985,1993.1,1992.2,0.56808579]
[1772519134508,0.56344985,1993.1,1992.5,0.56808579]
[1772519136109,7.00723516,1993.1,1992.5,0.56808579]
[1772519136311,0.56344985,1993.1,1992.5,0.56808579]
[1772519136511,7.01441439,1993.3,1992.9,0.56808579]
[1772519137112,6.45096454,1993.3,1992.9,0.56808579]
[1772519137312,0.56344985,1993.5,1992.9,0.56808579]
[1772519138311,0.00370821,1993.6,1992.9,0.56808579]
[1772519138710,0.56715806,1993.6,1992.9,0.56808579]
[1772519139112,0.00370821,1993.6,1992.9,0.56808579]
[1772519139419,0.56715806,1993.6,1993.1,0.56808579]
[1772519140214,0.00370821,1993.6,1993.1,0.56808579]
[1772519140818,0.56344985,1994.0,1993.1,0.56808579]
[1772519141919,0.56698225,1994.0,1993.1,0.56808579]
[1772519144933,0.56344985,1993.9,1993.1,0.56808579]
[1772519146032,0.56698225,1994.0,1993.1,0.56808579]
[1772519148331,0.0035324,1994.0,1993.1,0.56808579]
[1772519149433,0.56460258,1994.0,1993.1,0.56808579]
[1772519151432,0.56460258,1994.0,1992.7,6.574]
[1772519151433,0.0035324,1994.0,1993.4,0.59121]
[1772519151732,0.0035324,1994.0,1993.4,0.59759858]
[1772519151932,0.56107018,1994.3,1993.4,0.59759858]
[1772519152626,0.56107018,1994.5,1993.4,0.59759858]
[1772519153030,0.5653332,1994.5,1993.4,0.59759858]
[1772519153631,6.574,1994.9,1994.0,0.59121]
[1772519153829,0.81173018,1995.1,1994.2,0.59121]
[1772519154031,0.56107018,1994.8,1993.6,0.59121]
[1772519154234,0.56107018,1994.6,1993.6,0.59121]
[1772519154735,0.56543243,1994.6,1993.6,0.59121]
[1772519161842,0.56543243,1994.6,1993.7,0.59121]
[1772519162346,0.56543243,1994.6,1993.4,0.00638858]
[1772519162347,0.56543243,1994.6,1993.5,0.59121]
[1772519170953,0.00436225,1994.6,1993.7,0.59121]
[1772519171544,0.56107018,1995.1,1994.0,0.59121]
[1772519172553,0.5656581,1995.1,1994.0,0.59121]
[1772519173356,0.00458792,1995.1,1994.2,0.59121]
[1772519174653,0.5656581,1995.1,1994.2,0.59121]
[1772519177460,0.00458792,1995.1,1994.2,0.59121]
[1772519182459,0.54307945,1995.1,1994.4,0.56405238]
[1772519186559,0.54307945,1995.1,1993.8,10.42577372]
[1772519186761,0.54307945,1995.1,1994.0,0.56405238]
[1772519197472,0.53849153,1995.0,1994.0,0.56405238]
[1772519197671,0.53849153,1995.0,1994.1,0.56405238]
[1772519197870,0.53849153,1995.0,1994.1,7.13405238]
[1772519198171,0.53849153,1995.0,1994.2,0.56405238]
[1772519200475,0.53849153,1994.9,1994.2,0.56405238]
[1772519201172,0.53849153,1994.9,1993.6,0.25083]
[1772519201173,0.53849153,1994.9,1993.7,0.56405238]
[1772519201373,0.53849153,1994.8,1993.8,0.56405238]
[1772519202078,0.53849153,1994.7,1993.8,0.56405238]
[1772519203982,0.53849153,1994.6,1993.8,0.56405238]
[1772519210390,7.59695209,1995.0,1993.6,6.57]
[1772519210391,0.58859652,1994.9,1994.2,0.54529237]
[1772519212594,0.58859652,1994.7,1994.0,0.54529237]
[1772519217990,0.58859652,1994.7,1993.7,1.02695209]
[1772519218295,0.58859652,1994.7,1993.8,0.54529237]
[1772519219993,0.58859652,1994.3,1993.7,0.54529237]
[1772519220199,0.58859652,1994.3,1993.5,0.54529237]
[1772519221196,0.58859652,1994.3,1993.6,0.54529237]
[1772519221392,0.58859652,1994.5,1993.6,0.54529237]
[1772519222695,0.58859652,1994.4,1993.6,0.54529237]
[1772519224495,0.58859652,1994.2,1993.6,0.54529237]
[1772519225204,0.58859652,1994.4,1993.8,0.54529237]
[1772519228607,0.58859652,1994.4,1994.0,0.54529237]
[1772519228999,6.29356473,1994.6,1994.0,0.54529237]
[1772519229205,0.58859652,1994.5,1994.0,0.54529237]
[1772519229697,0.58859652,1994.5,1993.5,1.02743146]
[1772519229698,0.58859652,1994.5,1994.2,0.54529237]
[1772519230103,0.58859652,1994.5,1993.9,1.02743146]
[1772519230104,0.58859652,1994.5,1994.0,0.54529237]
[1772519231405,0.58859652,1994.6,1994.2,0.54529237]
[1772519232006,0.58859652,1994.7,1994.4,0.54529237]
[1772519232204,6.29628544,1994.8,1994.4,0.54529237]
[1772519232205,0.58859652,1994.8,1994.4,0.54529237]
[1772519233704,0.58859652,1995.0,1994.6,0.54529237]